bitfinex/quotes_BTCUSD_20250314
["timestamp","ask_amount","ask_price","bid_price","bid_amount"]
[1741965894299,0.01845933,84973.0,84971.0,0.235373]
[1741965894736,0.01845933,84973.0,84971.0,0.234373]
[1741965895149,0.01845933,84973.0,84971.0,0.233373]
[1741965895545,0.01845933,84973.0,84971.0,0.245141]
[1741965895771,0.01845933,84973.0,84972.0,0.011768]
[1741965895987,0.2471,84986.0,84980.0,0.235347]
[1741965896388,0.01845728,84984.0,84982.0,0.235343]
[1741965896792,0.01845728,84984.0,84983.0,1.5]
[1741965897008,0.03022328,84984.0,84983.0,1.5]
[1741965897869,0.011768,84976.0,84972.0,0.149]
[1741965898167,0.011767,84978.0,84972.0,0.38437]
[1741965898371,0.26556328,84984.0,84980.0,0.235349]
[1741965898576,0.01845728,84984.0,84983.0,0.003]
[1741965898778,0.03022328,84984.0,84983.0,0.003]
[1741965899003,0.011767,84981.0,84973.0,0.235367]
[1741965899154,0.235366,84975.0,84972.0,0.149]
[1741965899355,0.011767,84979.0,84975.0,0.235362]
[1741965899607,0.011767,84983.0,84976.0,0.235359]
[1741965899823,0.011767,84981.0,84972.0,0.149]
[1741965900004,0.235345,84982.0,84972.0,0.149]
[1741965900148,0.03022328,84984.0,84977.0,0.234356]
[1741965900348,0.03022328,84984.0,84972.0,0.154]
[1741965900349,0.247122,84978.0,84973.0,0.235368]
[1741965900839,0.247122,84978.0,84972.0,0.154]
[1741965900840,0.011767,84979.0,84974.0,0.235366]
[1741965901010,0.011767,84979.0,84972.0,0.154]
[1741965901011,0.011768,84976.0,84972.0,0.154]
[1741965901214,0.235366,84974.0,84972.0,0.158]
[1741965901356,0.011768,84973.0,84972.0,0.009]
[1741965901562,0.24716,84965.0,84964.0,0.747]
[1741965901765,0.011769,84965.0,84964.0,0.747]
[1741965902027,0.03022944,84965.0,84964.0,0.747]
[1741965903192,0.26562044,84965.0,84964.0,0.747]
[1741965903427,0.26562044,84965.0,84953.0,0.235422]
[1741965903428,0.247165,84963.0,84953.0,0.235422]
[1741965903584,0.247165,84963.0,84950.0,0.02]
[1741965903785,0.657565,84963.0,84962.0,6e-07]
[1741965903968,0.72875184,84963.0,84962.0,6e-07]
[1741965904168,0.81135184,84963.0,84962.0,6e-07]
[1741965904369,0.86075184,84963.0,84962.0,6e-07]
[1741965904568,0.789565,84963.0,84962.0,6e-07]
[1741965904806,0.789565,84963.0,84962.0,0.0110006]
[1741965904972,0.789565,84963.0,84962.0,0.0060006]
[1741965905178,0.789565,84963.0,84962.0,6e-07]
[1741965905539,0.789565,84963.0,84962.0,0.0020006]
[1741965905687,0.71591197,84963.0,84962.0,6e-07]
[1741965906030,0.657565,84963.0,84962.0,6e-07]
[1741965906169,0.4104,84963.0,84962.0,6e-07]
[1741965906375,0.657565,84963.0,84962.0,6e-07]
[1741965906570,0.661565,84963.0,84962.0,6e-07]
[1741965906798,0.42828889,84963.0,84962.0,6e-07]
[1741965906996,0.43605789,84963.0,84962.0,6e-07]
[1741965907237,0.67145389,84963.0,84962.0,6e-07]
[1741965907436,0.67145389,84963.0,84962.0,0.0020006]
[1741965907785,0.67545389,84963.0,84962.0,0.0020006]
[1741965908207,0.657565,84963.0,84962.0,0.0021702]
[1741965908508,0.657565,84963.0,84962.0,0.0041702]
[1741965909074,0.645796,84963.0,84962.0,0.0041702]
[1741965909269,0.01846044,84965.0,84963.0,0.235396]
[1741965909552,0.01846044,84965.0,84964.0,0.235393]
[1741965909754,0.01846044,84965.0,84964.0,0.247162]
[1741965910001,0.01846044,84965.0,84964.0,0.235393]
[1741965910472,0.01846044,84965.0,84964.0,0.26170285]
[1741965910707,0.011765,84991.0,84978.0,0.011767]
[1741965910954,0.01845922,84981.0,84979.0,0.14828]
[1741965911201,0.01845922,84981.0,84980.0,0.235349]
[1741965911660,0.235298,84999.0,84990.0,0.011766]
[1741965911926,0.011764,84998.0,84991.0,0.235319]
[1741965912154,0.011764,85000.0,84995.0,0.235307]
[1741965912403,0.011765,84995.0,84991.0,0.235316]
[1741965912657,0.011766,84987.0,84980.0,0.02386058]
[1741965912894,0.011766,84987.0,84983.0,0.235339]
[1741965913111,0.235345,84982.0,84980.0,0.0041247]
[1741965913350,0.01323797,84981.0,84980.0,0.0041247]
[1741965913557,0.011767,84981.0,84980.0,0.0041247]
[1741965913732,0.235338,84984.0,84980.0,0.0041247]
[1741965913930,0.01845693,84981.0,84980.0,0.0101247]
[1741965914353,0.01845693,84981.0,84980.0,0.0041247]
[1741965914555,0.01845693,84981.0,84980.0,0.0001247]
[1741965914754,0.01845693,84981.0,84980.0,0.1530047]
[1741965915179,0.01845693,84981.0,84980.0,0.1480047]
[1741965915380,0.01845693,84981.0,84980.0,0.1647717]
[1741965915736,0.01845693,84981.0,84980.0,0.1480047]
[1741965916106,0.01845693,84981.0,84980.0,0.1530047]
[1741965916306,0.00532546,84986.0,84985.0,0.247101]
[1741965916507,0.00979652,84995.0,84994.0,0.23531]
[1741965916712,0.00979652,84995.0,84994.0,0.247075]
[1741965916911,0.00979652,84995.0,84994.0,0.26161585]
[1741965917344,5.2e-07,84995.0,84994.0,0.68119088]
[1741965917521,0.00087371,85021.0,85020.0,0.246999]
[1741965917678,0.01176,85027.0,85021.0,0.235234]
[1741965917877,0.01176,85027.0,85022.0,0.235231]
[1741965918080,0.24696,85034.0,85021.0,0.011761]
[1741965918285,0.235212,85030.0,85022.0,0.235233]
[1741965918484,0.246972,85030.0,85022.0,0.235233]
[1741965918708,0.01176,85027.0,85022.0,0.235233]
[1741965918910,0.235218,85028.0,85023.0,0.23523]
[1741965919111,0.235226,85025.0,85021.0,0.235233]
[1741965919329,0.0336891,85029.0,85021.0,0.235233]
[1741965919330,0.0219291,85029.0,85022.0,0.237233]
[1741965919491,0.0219291,85029.0,85022.0,0.002]
[1741965919918,0.235217,85028.0,85024.0,0.235226]
[1741965920284,0.0219291,85029.0,85024.0,0.235227]
[1741965920489,0.011761,85023.0,85022.0,0.002]
[1741965920891,0.011761,85023.0,85022.0,0.001]
[1741965921094,0.01844883,85025.0,85024.0,0.235227]
[1741965921450,0.01844883,85025.0,85024.0,0.246988]
[1741965921618,0.00506041,85028.0,85027.0,0.235219]
[1741965921818,0.00506041,85028.0,85025.0,0.235224]
[1741965922075,0.00506041,85028.0,85026.0,0.235221]
[1741965922418,0.00506041,85028.0,85024.0,0.237226]
[1741965922652,0.235224,85025.0,85024.0,0.002]
[1741965922846,0.00506041,85028.0,85026.0,0.235219]
[1741965923057,0.011759,85039.0,85026.0,0.235219]
[1741965923295,0.246954,85036.0,85024.0,0.001]
[1741965923459,0.01844735,85036.0,85033.0,0.235202]
[1741965923681,0.01844735,85036.0,85030.0,0.235209]
[1741965923682,0.26540135,85036.0,85030.0,0.235209]
[1741965923890,0.01844735,85036.0,85034.0,0.235199]
[1741965924708,0.02188402,85038.0,85037.0,0.235191]
[1741965924951,0.02188402,85038.0,85037.0,0.24695]
[1741965925116,0.02188402,85038.0,85037.0,0.26149085]
[1741965925317,2e-08,85038.0,85037.0,0.38106588]
[1741965925517,2e-08,85038.0,85037.0,0.68975209]
[1741965925718,1.6e-07,85050.0,85049.0,0.246915]
[1741965926057,0.00041549,85050.0,85049.0,1.36887589]
[1741965926279,0.00041549,85050.0,85049.0,1.14220301]
[1741965926496,0.00041549,85050.0,85049.0,1.16850086]
[1741965926697,0.00041549,85050.0,85049.0,2.66850086]
[1741965926901,0.00041549,85050.0,85049.0,2.50846386]
[1741965927113,0.00041549,85050.0,85049.0,2.64224301]
[1741965927334,0.00041549,85050.0,85049.0,2.66854086]
[1741965928120,0.00041549,85050.0,85049.0,2.66000001]
[1741965928321,0.00041549,85050.0,85049.0,2.66600001]
[1741965928520,0.00041549,85050.0,85049.0,1.14224301]
[1741965928877,0.00041549,85050.0,85049.0,1.14824301]
[1741965929010,0.00041549,85050.0,85049.0,1.15424301]
[1741965929592,0.00041549,85050.0,85049.0,1.18054086]
[1741965929797,0.00041549,85050.0,85049.0,1.30011589]
[1741965930187,4.9e-07,85050.0,85049.0,1.73121589]
[1741965930812,4.9e-07,85050.0,85049.0,1.73621589]
[1741965931012,9e-08,85066.0,85065.0,0.546869]
[1741965931216,0.0001246,85066.0,85065.0,0.82918488]
[1741965931617,0.0001246,85066.0,85065.0,0.68098488]
[1741965931618,6e-07,85066.0,85065.0,0.68098488]
[1741965931817,0.01843623,85089.0,85088.0,0.23505]
[1741965932115,0.01793623,85089.0,85088.0,0.39767085]
[1741965932329,0.01793623,85089.0,85088.0,0.40942285]
[1741965932661,0.07986754,85105.0,85100.0,0.235017]
[1741965932856,0.0006246,85101.0,85100.0,0.2469479]
[1741965933291,0.0006246,85101.0,85100.0,0.235017]
[1741965933689,0.0006246,85101.0,85100.0,0.246767]
[1741965933896,0.0006246,85101.0,85100.0,0.26130785]
[1741965934477,0.0006246,85101.0,85100.0,0.27349971]
[1741965935097,0.0006246,85101.0,85100.0,0.27949971]
[1741965935758,0.0006246,85101.0,85100.0,0.29679063]
[1741965936120,0.0006246,85101.0,85100.0,0.29104063]
[1741965936341,0.0006246,85101.0,85100.0,0.26774971]
[1741965936539,0.0006246,85101.0,85100.0,0.26174971]
[1741965936816,0.0006246,85101.0,85100.0,1.76174971]
[1741965937020,0.0006246,85101.0,85100.0,0.27949971]
[1741965937440,0.0006246,85101.0,85100.0,0.27349971]
[1741965937639,0.0006246,85101.0,85100.0,0.26174971]
[1741965937876,0.0006246,85101.0,85100.0,0.42162971]
[1741965938216,0.0006246,85101.0,85100.0,0.40108886]
[1741965938415,0.0006246,85101.0,85100.0,0.40708886]
[1741965938674,0.0006246,85101.0,85100.0,0.012]
[1741965939941,0.0006246,85101.0,85100.0,0.006]
[1741965940182,0.0006246,85101.0,85098.0,0.235022]
[1741965940379,0.0006246,85101.0,85100.0,0.005]
[1741965941005,0.0006246,85101.0,85099.0,0.235019]
[1741965941182,0.0006246,85101.0,85100.0,0.01175]
[1741965941376,0.0006246,85101.0,85100.0,0.02629085]
[1741965941598,0.0006246,85101.0,85100.0,0.03129085]
[1741965941817,0.0006246,85101.0,85100.0,0.02629085]
[1741965942260,0.0006246,85101.0,85100.0,0.26130785]
[1741965942935,0.0006246,85101.0,85100.0,0.26630785]
[1741965943156,0.0006246,85101.0,85100.0,0.39699785]
[1741965943371,0.0006246,85101.0,85100.0,0.40874785]
[1741965943810,6e-07,85101.0,85100.0,0.82832288]
[1741965944067,0.0005006,85101.0,85100.0,0.71474785]
[1741965944529,0.0005006,85101.0,85100.0,0.70874785]
[1741965944752,0.0008398,85101.0,85100.0,0.70874785]
[1741965945000,0.0008398,85101.0,85100.0,0.71974785]
[1741965945467,0.0008398,85101.0,85100.0,0.71474785]
[1741965945669,0.0008398,85101.0,85100.0,0.72074785]
[1741965946073,0.0008398,85101.0,85100.0,0.40899785]
[1741965946368,0.0008398,85101.0,85100.0,0.42074785]
[1741965946890,0.0008398,85101.0,85100.0,1.92074785]
[1741965947064,0.0008398,85101.0,85100.0,2.66686785]
[1741965951553,0.0008398,85101.0,85100.0,2.66702785]
[1741965952725,0.0008398,85101.0,85100.0,2.66694785]
[1741965952939,0.0008398,85101.0,85100.0,2.25812]
[1741965953146,0.2358538,85101.0,85100.0,0.75812]
[1741965953321,0.2476038,85101.0,85100.0,0.75812]
[1741965953527,0.26603481,85101.0,85100.0,0.75812]
[1741965953723,0.26603481,85101.0,85100.0,0.012]
[1741965953946,0.26603481,85101.0,85100.0,0.006]
[1741965954166,0.39243481,85101.0,85100.0,0.006]
[1741965954321,0.39243481,85101.0,85100.0,0.012]
[1741965954762,0.39243481,85101.0,85100.0,0.006]
[1741965954937,0.01927081,85101.0,85100.0,0.006]
[1741965955135,0.26603481,85101.0,85100.0,0.003]
[1741965955582,0.26607481,85101.0,85100.0,0.008]
[1741965955783,0.28800334,85101.0,85100.0,0.003]
[1741965956251,0.3482483,85101.0,85100.0,0.003]
[1741965956499,0.1014843,85101.0,85090.0,0.2521523]
[1741965956704,0.0541843,85101.0,85099.0,0.235018]
[1741965956909,0.0541843,85101.0,85093.0,0.235034]
[1741965956910,0.24677,85100.0,85093.0,0.235034]
[1741965957108,0.0541843,85101.0,85091.0,0.14792]
[1741965957109,0.0541843,85101.0,85099.0,0.235017]
[1741965957231,0.01382476,85101.0,85100.0,0.01175]
[1741965957437,0.01382476,85101.0,85100.0,1.51175]
[1741965957641,0.01382476,85101.0,85100.0,1.5]
[1741965957840,0.01382476,85101.0,85100.0,1.51175]
[1741965958251,0.0008798,85101.0,85100.0,1.501]
[1741965958669,0.0008798,85101.0,85100.0,0.236017]
[1741965958873,0.0008798,85101.0,85100.0,0.001]
[1741965959088,0.2358938,85101.0,85100.0,0.15496]
[1741965959319,0.0008798,85101.0,85100.0,0.15496]
[1741965959544,0.0008798,85101.0,85100.0,0.15396]
[1741965959775,0.0008798,85101.0,85100.0,0.14796]
[1741965960014,0.0008798,85101.0,85100.0,0.15396]
[1741965960265,0.02286641,85101.0,85100.0,0.386977]
[1741965960653,0.02286641,85101.0,85100.0,0.15196]
[1741965960654,0.25788041,85101.0,85100.0,0.15196]
[1741965960863,0.02286641,85101.0,85100.0,0.391977]
[1741965961595,0.02774851,85101.0,85100.0,0.391977]
[1741965961773,0.0057619,85101.0,85100.0,0.391977]
[1741965962575,0.0057619,85101.0,85100.0,0.40651785]
[1741965962751,0.07986754,85105.0,85104.0,0.235006]
[1741965963174,0.07986754,85105.0,85104.0,0.246256]
[1741965963404,0.07986754,85105.0,85104.0,0.234006]
[1741965963780,0.07986754,85105.0,85104.0,0.245256]
[1741965963984,0.07986754,85105.0,85104.0,0.247756]
[1741965964152,0.07986754,85105.0,85104.0,0.26179685]
[1741965964571,0.07986754,85105.0,85104.0,0.68087188]
[1741965964773,0.07986754,85105.0,85104.0,0.68037188]
[1741965964978,0.07986754,85105.0,85104.0,0.67987188]
[1741965965177,0.07986754,85105.0,85104.0,0.237006]
[1741965965402,0.07986754,85105.0,85104.0,0.248256]
[1741965965606,0.07986754,85105.0,85104.0,0.245256]
[1741965965829,0.07986754,85105.0,85104.0,0.247756]
[1741965965999,0.07986754,85105.0,85104.0,0.27153278]
[1741965966198,0.07986754,85105.0,85104.0,0.27503278]
[1741965966398,0.07986754,85105.0,85104.0,0.27441804]
[1741965966605,0.07986754,85105.0,85104.0,1.78445889]
[1741965966806,0.07986754,85105.0,85104.0,1.79045889]
[1741965967065,0.07986754,85105.0,85104.0,1.78995889]
[1741965967341,0.07986754,85105.0,85104.0,1.78945889]
[1741965967541,0.07986754,85105.0,85104.0,1.78895889]
[1741965967747,0.07986754,85105.0,85104.0,1.76266804]
[1741965967984,0.07986754,85105.0,85104.0,1.77391804]
[1741965968168,0.07986754,85105.0,85104.0,1.77341804]
[1741965968366,0.07986754,85105.0,85104.0,1.77291804]
[1741965968567,0.07986754,85105.0,85104.0,1.78745889]
[1741965969070,0.07986754,85105.0,85104.0,1.76066804]
[1741965969273,0.07986754,85105.0,85104.0,1.76016804]
[1741965969409,0.07986754,85105.0,85104.0,1.75966804]
[1741965969615,0.07986754,85105.0,85104.0,1.77141804]
[1741965969987,0.07990754,85105.0,85104.0,1.77091804]
[1741965970224,0.07990754,85105.0,85104.0,1.78495889]
[1741965970532,0.07990754,85105.0,85104.0,1.90403392]
[1741965970762,2.2e-07,85116.0,85115.0,0.26126485]
[1741965970967,4e-05,85120.0,85119.0,0.26075385]
[1741965971178,4e-05,85120.0,85119.0,0.37982888]
[1741965971386,4.161e-05,85143.0,85139.0,0.26119485]
[1741965971620,4.161e-05,85143.0,85139.0,1.15451485]
[1741965971843,0.00045543,85140.0,85139.0,1.15401485]
[1741965972045,0.011743,85154.0,85139.0,0.746]
[1741965972275,0.011742,85161.0,85140.0,0.2521523]
[1741965972486,0.00012453,85150.0,85141.0,0.234904]
[1741965972690,0.01186753,85150.0,85140.0,0.2521523]
[1741965972854,0.00012453,85150.0,85145.0,0.234893]
[1741965973053,0.00012453,85150.0,85140.0,0.2521523]
[1741965973258,0.00012453,85150.0,85148.0,0.234883]
[1741965973443,0.00012453,85150.0,85148.0,0.234383]
[1741965973647,0.00012453,85150.0,85148.0,0.233883]
[1741965974045,0.00012453,85150.0,85148.0,0.233383]
[1741965974471,0.00012453,85150.0,85148.0,0.232883]
[1741965974807,0.00012453,85150.0,85148.0,0.234884]
[1741965975103,0.00012453,85150.0,85149.0,0.14696]
[1741965975746,4e-05,85150.0,85148.0,0.005]
[1741965975950,4e-05,85150.0,85149.0,0.381762]
[1741965976149,4e-05,85150.0,85149.0,0.381262]
[1741965976353,4e-05,85150.0,85148.0,0.0105]
[1741965976354,4e-05,85150.0,85148.0,0.006]
[1741965976585,4e-05,85150.0,85149.0,0.1463]
[1741965976797,4e-05,85150.0,85149.0,1.6458]
[1741965977008,0.011783,85150.0,85149.0,0.006]
[1741965977213,0.01325112,85150.0,85149.0,0.006]
[1741965977425,0.134583,85150.0,85149.0,0.006]
[1741965977599,0.058983,85150.0,85149.0,0.0055]
[1741965977879,0.058983,85150.0,85149.0,0.01]
[1741965978113,0.011783,85150.0,85149.0,0.005]
[1741965978308,0.246652,85140.0,85139.0,0.7455]
[1741965978565,0.246652,85140.0,85139.0,0.745]
[1741965979034,0.246652,85140.0,85139.0,0.7445]
[1741965979453,0.246652,85140.0,85120.0,0.1461]
[1741965979454,0.246706,85121.0,85120.0,0.1461]
[1741965979864,0.246706,85121.0,85120.0,0.1456]
[1741965980068,0.246716,85118.0,85111.0,0.74584]
[1741965980272,0.246716,85118.0,85114.0,0.14676]
[1741965980273,0.234976,85115.0,85114.0,0.14676]
[1741965980474,0.23497,85117.0,85114.0,0.14626]
[1741965980475,0.234973,85116.0,85114.0,0.14626]
[1741965980722,0.246718,85117.0,85114.0,0.14576]
[1741965980923,0.011748,85115.0,85114.0,0.14567543]
[1741965981077,0.23263956,85116.0,85114.0,0.14517543]
[1741965981280,0.246708,85121.0,85120.0,0.006]
[1741965981494,0.01842691,85126.0,85114.0,0.00041543]
[1741965981692,0.01842691,85126.0,85120.0,0.0055]
[1741965981693,0.246698,85125.0,85120.0,0.0055]
[1741965981892,0.25337291,85126.0,85121.0,0.234959]
[1741965982100,0.01842691,85126.0,85125.0,0.234948]
[1741965982300,0.011744,85148.0,85127.0,0.011747]
[1741965982501,0.01842457,85146.0,85145.0,0.234893]
[1741965982774,0.011745,85140.0,85139.0,0.14672]
[1741965983001,0.011748,85119.0,85114.0,0.234978]
[1741965983226,0.234937,85130.0,85115.0,0.381353]
[1741965983578,0.246679,85131.0,85125.0,0.234447]
[1741965983748,0.246679,85131.0,85127.0,0.234441]
[1741965983958,0.234933,85131.0,85128.0,0.234938]
[1741965984286,0.01842453,85136.0,85134.0,0.234422]
[1741965984497,0.234887,85148.0,85135.0,0.14704]
[1741965984701,0.234891,85146.0,85142.0,0.234899]
[1741965984836,0.0002094,85150.0,85148.0,0.234884]
[1741965985045,0.0002094,85150.0,85147.0,0.234884]
[1741965985239,0.0002094,85150.0,85148.0,0.234884]
[1741965985445,0.0002094,85150.0,85148.0,0.234384]
[1741965985866,0.0002094,85150.0,85148.0,0.233884]
[1741965986085,0.0002094,85150.0,85149.0,0.14658]
[1741965986290,0.2468314,85150.0,85149.0,0.14658]
[1741965986511,0.2468314,85150.0,85149.0,0.14608]
[1741965986739,0.0002094,85150.0,85149.0,1.64558]
[1741965986938,0.0002094,85150.0,85149.0,1.5]
[1741965987143,0.2468314,85150.0,85149.0,1.64692]
[1741965987557,0.2468314,85150.0,85149.0,1.4995]
[1741965987716,0.2468314,85150.0,85149.0,1.499]
[1741965989645,0.246663,85136.0,85135.0,0.14546453]
[1741965989878,0.23491,85139.0,85136.0,0.234918]
[1741965990124,0.0001693,85165.0,85135.0,0.15871053]
[1741965990381,0.234898,85144.0,85141.0,0.234904]
[1741965990572,0.01863228,85150.0,85137.0,0.158745]
[1741965990747,0.01863228,85150.0,85149.0,0.234882]
[1741965991186,0.0002094,85150.0,85149.0,0.234382]
[1741965991384,0.0002094,85150.0,85149.0,0.393166]
[1741965991702,0.0002094,85150.0,85149.0,0.381422]
[1741965992150,0.0002094,85150.0,85149.0,0.382302]
[1741965992610,0.0002094,85150.0,85149.0,0.3816408]
[1741965992808,0.2468314,85150.0,85149.0,0.0003388]
[1741965993011,0.3738314,85150.0,85149.0,0.0003388]
[1741965993218,0.39225312,85150.0,85149.0,0.0003388]
[1741965993872,0.39225312,85150.0,85149.0,0.0013388]
[1741965994293,0.39225312,85150.0,85149.0,0.0003388]
[1741965994498,0.3738314,85150.0,85149.0,0.0073388]
[1741965994924,0.2965314,85150.0,85149.0,0.0073388]
[1741965995343,0.0002094,85150.0,85149.0,0.0053388]
[1741965995540,0.2468314,85150.0,85149.0,0.0053388]
[1741965995750,0.2478314,85150.0,85149.0,0.0053388]
[1741965996053,0.2478314,85150.0,85149.0,0.0003388]
[1741965996218,0.2478314,85150.0,85149.0,0.0033388]
[1741965997016,0.2468314,85150.0,85149.0,0.0033388]
[1741965997454,0.26625483,85150.0,85149.0,0.0033388]
[1741965997653,0.26625483,85150.0,85140.0,0.4942381]
[1741965997654,0.246649,85141.0,85140.0,0.3945769]
[1741965998924,0.26507343,85141.0,85140.0,0.3945769]
[1741965999129,0.31427343,85141.0,85140.0,0.3945769]
[1741966000333,0.31427343,85141.0,85140.0,0.3955769]
[1741966000450,0.31427343,85141.0,85140.0,0.3965769]
[1741966000653,0.31427343,85141.0,85140.0,0.3955769]
[1741966000858,0.31427343,85141.0,85140.0,0.3965769]
[1741966002589,0.31427343,85141.0,85140.0,9e-07]
[1741966002915,0.31427343,85141.0,85135.0,4.3e-07]
[1741966002916,0.246663,85136.0,85135.0,4.3e-07]
[1741966003048,0.546663,85136.0,85135.0,4.3e-07]
[1741966003265,0.246764,85101.0,85100.0,0.000339]
[1741966003841,0.657164,85101.0,85100.0,0.000339]
[1741966004744,0.66939585,85101.0,85100.0,0.00475443]
[1741966004971,0.66939585,85101.0,85100.0,0.00075443]
[1741966005312,0.66943585,85101.0,85100.0,0.00075443]
[1741966005514,1.05681177,85101.0,85082.0,0.09290342]
[1741966005734,0.246817,85083.0,85082.0,0.09302802]
[1741966006600,0.011752,85090.0,85082.0,0.09302802]
[1741966006810,0.011752,85088.0,85082.0,0.0001246]
[1741966007023,0.246817,85083.0,85082.0,0.0001246]
[1741966007852,0.546817,85083.0,85082.0,0.0001246]
[1741966008056,0.6525359,85083.0,85082.0,0.0001246]
[1741966008259,0.546817,85083.0,85082.0,0.0001246]
[1741966009040,0.627017,85083.0,85082.0,6e-07]
[1741966009235,0.624017,85083.0,85082.0,6e-07]
[1741966009455,0.674017,85083.0,85082.0,6e-07]
[1741966009653,0.624017,85083.0,85082.0,6e-07]
[1741966010228,0.734417,85083.0,85082.0,6e-07]
[1741966010449,0.732417,85083.0,85082.0,0.0020006]
[1741966010915,0.736417,85083.0,85082.0,0.0020006]
[1741966011168,0.657217,85083.0,85082.0,0.0020006]
[1741966011414,0.660217,85083.0,85082.0,0.0020006]
[1741966011880,0.657217,85083.0,85082.0,0.0020006]
[1741966012104,0.658217,85083.0,85082.0,0.0020006]
[1741966012321,0.657217,85083.0,85082.0,6e-07]
[1741966012744,0.661217,85083.0,85082.0,6e-07]
[1741966013101,0.957217,85083.0,85082.0,6e-07]
[1741966013298,0.97565441,85083.0,85082.0,6e-07]
[1741966013649,1.09622944,85083.0,85082.0,6e-07]
[1741966014182,1.09522944,85083.0,85082.0,6e-07]
[1741966014464,0.97565441,85083.0,85082.0,6e-07]
[1741966014928,0.97865441,85083.0,85082.0,6e-07]
[1741966015304,0.98165441,85083.0,85082.0,6e-07]
[1741966015844,1.11045441,85083.0,85082.0,6e-07]
[1741966016050,0.246872,85064.0,85054.0,0.0003394]
[1741966016283,0.657272,85064.0,85054.0,0.0003394]
[1741966016686,0.66904344,85064.0,85054.0,0.0003394]
[1741966017125,0.67204344,85064.0,85054.0,0.0003394]
[1741966018944,0.74179961,85064.0,85054.0,0.0003394]
[1741966019141,0.6904861,85064.0,85054.0,0.0003394]
[1741966019487,0.6874861,85064.0,85054.0,0.0003394]
[1741966019884,0.67571466,85064.0,85054.0,0.0003394]
[1741966020089,0.68785407,85064.0,85054.0,0.0003394]
[1741966020736,0.68885407,85064.0,85054.0,0.0003394]
[1741966021150,0.67571466,85064.0,85054.0,0.2354814]
[1741966021512,0.67571466,85064.0,85054.0,0.0003394]
[1741966021513,0.25355966,85064.0,85054.0,0.0003394]
[1741966021717,0.01844266,85064.0,85062.0,0.235121]
[1741966021930,0.01844266,85064.0,85063.0,0.235458]
[1741966022348,0.01844266,85064.0,85063.0,0.002339]
[1741966022604,0.26531466,85064.0,85063.0,0.002339]
[1741966023440,0.26531466,85064.0,85063.0,0.004339]
[1741966023846,0.26531466,85064.0,85063.0,0.002339]
[1741966024057,0.26531466,85064.0,85063.0,0.000339]
[1741966024267,0.01844266,85064.0,85063.0,0.240458]
[1741966024446,0.001,85064.0,85063.0,0.006339]
[1741966024747,0.011754,85072.0,85067.0,0.235106]
[1741966024965,0.011754,85076.0,85063.0,0.001339]
[1741966025216,0.246812,85085.0,85067.0,0.011755]
[1741966025412,0.235049,85089.0,85085.0,0.235056]
[1741966025625,0.235049,85089.0,85063.0,0.000339]
[1741966025626,0.01172759,85105.0,85087.0,0.246805]
[1741966025831,0.011748,85118.0,85087.0,0.48376585]
[1741966026058,0.011747,85128.0,85087.0,0.90334088]
[1741966026260,0.011747,85123.0,85087.0,0.90334088]
[1741966026422,0.011748,85119.0,85087.0,0.91559326]
[1741966026629,0.011748,85120.0,85087.0,0.93923365]
[1741966026832,0.246706,85122.0,85087.0,2.44123365]
[1741966027048,0.23496,85121.0,85087.0,2.49123365]
[1741966027234,0.246707,85121.0,85087.0,2.48923365]
[1741966027557,0.011747,85122.0,85087.0,2.43923365]
[1741966027762,0.00104,85088.0,85087.0,2.45284874]
[1741966028835,0.00204,85088.0,85087.0,0.464513]
[1741966029052,0.00204,85088.0,85087.0,0.476265]
[1741966029258,0.00204,85088.0,85087.0,0.49080585]
[1741966029368,0.00204,85088.0,85087.0,0.47905385]
[1741966029579,0.00104,85088.0,85087.0,0.49800192]
[1741966030059,0.00104,85088.0,85087.0,0.62357695]
[1741966030384,4e-05,85088.0,85087.0,0.61557695]
[1741966030777,4e-05,85088.0,85087.0,0.62157695]
[1741966030984,1e-06,85088.0,85087.0,0.92157695]
[1741966031160,4e-05,85101.0,85099.0,0.23502]
[1741966031377,0.0002939,85100.0,85099.0,0.3799]
[1741966032028,0.0002939,85100.0,85099.0,0.3789]
[1741966032373,0.0002939,85100.0,85099.0,0.14588]
[1741966032780,9e-07,85101.0,85100.0,0.56130785]
[1741966032989,9e-07,85101.0,85100.0,0.75808288]
[1741966033191,9e-07,85101.0,85100.0,0.623967]
[1741966033609,9e-07,85101.0,85100.0,0.235017]
[1741966033817,9e-07,85101.0,85100.0,0.380097]
[1741966034229,9e-07,85101.0,85100.0,0.386097]
[1741966034891,0.0010009,85101.0,85100.0,0.391097]
[1741966035296,9e-07,85101.0,85100.0,0.386097]
[1741966035502,0.0010009,85101.0,85100.0,0.385097]
[1741966035711,0.0010009,85101.0,85100.0,0.390097]
[1741966035928,0.0127509,85101.0,85100.0,0.01]
[1741966036338,0.0127509,85101.0,85100.0,0.005]
[1741966036779,0.0127509,85101.0,85100.0,0.011]
[1741966037355,0.011752,85089.0,85084.0,0.38102]
[1741966037564,0.011752,85089.0,85084.0,0.2351844]
[1741966037762,0.23505,85088.0,85084.0,0.2351844]
[1741966037963,0.235054,85087.0,85084.0,0.2351844]
[1741966038303,0.011752,85085.0,85084.0,0.0001244]
[1741966038507,0.01322135,85085.0,85084.0,0.0001244]
[1741966038737,0.01322135,85085.0,85084.0,0.0051244]
[1741966039148,0.011752,85085.0,85084.0,0.0001244]
[1741966039351,0.24828042,85085.0,85084.0,0.0001244]
[1741966039556,0.246811,85085.0,85084.0,0.0031244]
[1741966040505,0.246811,85085.0,85084.0,0.0081244]
[1741966040719,0.246811,85085.0,85084.0,0.0031244]
[1741966040937,9e-07,85101.0,85084.0,0.0071244]
[1741966041132,9e-07,85101.0,85093.0,0.235036]
[1741966041363,9e-07,85101.0,85100.0,0.235017]
[1741966041496,9e-07,85101.0,85100.0,0.380777]
[1741966041897,9e-07,85101.0,85100.0,0.392527]
[1741966042126,9e-07,85101.0,85100.0,0.391866]
[1741966042334,0.0001704,85101.0,85100.0,0.000339]
[1741966042531,0.2469344,85101.0,85100.0,0.000339]
[1741966042680,0.0001704,85101.0,85100.0,0.003339]
[1741966043093,0.2469344,85101.0,85100.0,0.003339]
[1741966043292,0.2469344,85101.0,85100.0,0.000339]
[1741966043715,0.2351844,85101.0,85100.0,0.001339]
[1741966043916,0.26536489,85101.0,85100.0,0.001339]